[Event "FIDE WTC Prel-A 2022"]
[Site "Jerusalem"]
[Date "2022.11.20"]
[Round "2.11"]
[White "Warmerdam, Max"]
[Black "Fressinet, Laurent"]
[Result "0-1"]
[ECO "A30"]
[WhiteElo "2617"]
[BlackElo "2622"]
[Annotator "TA"]
[PlyCount "152"]
[EventDate "2022.11.20"]
[EventType "team-tourn"]
[EventCountry "ISR"]
[SourceTitle "playchess.com"]
[Source "ChessBase"]
[SourceQuality "1"]
[WhiteTeam "Netherlands"]
[BlackTeam "France"]
[WhiteTeamCountry "NED"]
[BlackTeamCountry "FRA"]
[TimeControl "2700+10"]

{[%evp 17,152,38,57,22,31,27,33,15,19,5,5,8,10,10,20,0,8,0,25,32,32,32,33,35,25,29,43,35,41,43,39,37,34,30,30,51,37,37,99,0,0,0,0,0,67,67,62,61,68,61,60,60,67,65,72,0,56,56,69,3,3,0,7,0,0,0,0,0,0,0,4,0,8,8,239,239,239,239,236,0,0,0,0,0,0,0,0,0,0,0,0,0,0,0,0,0,0,0,0,0,0,0,0,0,0,0,0,0,0,0,0,0,0,0,0,0,0,0,0,0,0,0,0,-2508,-2116,-29982,-29983,-29983,-29984,-29985,-29986,-29991,-29986,-29996,-29995,-29995,-29991]} 1. c4 {[%emt 0:00:03]} e6 {[%emt 0:00:20]} 2. Nc3 {[%emt 0:00:05]} c5 {[%emt 0:00:06]} 3. Nf3 {[%emt 0:00:03]} Nf6 {[%emt 0:00:14]} 4. g3 {[%emt 0:00:02]} b6 {[%emt 0:00:19]} 5. Bg2 {[%emt 0:00:20]} Bb7 {[%emt 0:00:02]} 6. O-O {[%emt 0:00:13]} Be7 {[%emt 0:00:06]} 7. d4 {[%emt 0:00:20]} cxd4 {[%emt 0:00:14]} 8. Qxd4 {[%emt 0:00:03]} O-O {[%emt 0:00:30]} 9. Rd1 {[%emt 0:01:24]} Qc8 {[%emt 0:00:06]} 10. b3 {[%emt 0:02:20] A30: Symmetrical English: Double Fianchetto and Hedgehog.} d5 {[%emt 0:02:44]} 11. cxd5 {[%emt 0:02:41]} Nxd5 {[%emt 0:00:03]} 12. Nxd5 {[%emt 0:00:37] White is slightly better.} Bxd5 {[%emt 0:00:03]} 13. Bg5 {[%emt 0:00:30] Against Bf6} Nc6 {[%emt 0:10:00] [#]} 14. Qh4 $146 {[%emt 0:00:55]} ({Predecessor:} 14. Qa4 Bxg5 15. Nxg5 Bxg2 16. Kxg2 Ne7 17. Nxh7 Qb7+ 18. Kg1 Kxh7 19. Rd7 Qc6 20. Qh4+ {1-0 (69) Benkovic,P (2463)-Maksimovic,B (2421) Kragujevac 2009}) 14... f6 {[%emt 0:01:54]} 15. Be3 {[%emt 0:02:22]} Qb7 {[%emt 0:08:49]} 16. Rac1 {[%emt 0:04:06][%cal Od1d5]} Rad8 {[%emt 0:03:46]} 17. Qh3 {[%emt 0:03:30][%cal Od1d5] aiming for Rxd5!} f5 {[%emt 0:02:27]} 18. Ng5 {[%emt 0:01:58]} Bxg5 {[%emt 0:00:15]} 19. Bxg5 {[%emt 0:00:13]} Bxg2 {[%emt 0:03:50]} 20. Qxg2 {[%emt 0:00:02]} Rxd1+ {[%emt 0:00:08]} 21. Rxd1 {[%emt 0:00:02]} h6 {[%emt 0:00:25]} 22. Bf4 {[%emt 0:04:31]} Rd8 $1 {[%emt 0:01:03]} 23. Rc1 {[%emt 0:00:14]} Rc8 {[%emt 0:00:17]} 24. g4 {[%emt 0:00:27]} Nd8 $1 {[%emt 0:08:32]} 25. Rxc8 {[%emt 0:01:01]} Qxc8 {[%emt 0:00:01]} 26. gxf5 {[%emt 0:00:02]} exf5 {[%emt 0:00:25]} 27. Bxh6 $14 {[%emt 0:00:35][%csl Gh6][%cal Rg2g7][%mdl 4096] Endgame KQB-KQN} Ne6 {[%emt 0:00:08] [#]} (27... Qd7 $1 $14) 28. Bd2 {[%emt 0:02:45]} (28. Be3 $1 $16) 28... Qd7 $11 {[%emt 0:00:49] Inhibits Qd5.} 29. Qg6 {[%emt 0:00:18]} Nd4 {[%emt 0:01:01]} 30. Kf1 {[%emt 0:00:25]} Nxb3 {[%emt 0:00:11]} 31. axb3 $14 {[%emt 0:00:16]} Qxd2 $11 {[%emt 0:00:01] KQ-KQ} 32. Qe6+ {[%emt 0:00:02]} (32. Qxf5 Qd1+ 33. Kg2 Qxe2 $11) 32... Kh8 {[%emt 0:00:39]} 33. Qc8+ {[%emt 0:00:02]} (33. Qxf5 Qd1+ 34. Kg2 Qxe2 $11) 33... Kh7 {[%emt 0:00:00]} 34. Qxf5+ {[%emt 0:00:01]} Kg8 {[%emt 0:00:09]} 35. Qe6+ {[%emt 0:00:35]} Kh7 {[%emt 0:00:09]} 36. h4 {[%emt 0:00:06]} ({White should try} 36. f3 $16) 36... Qf4 {[%emt 0:00:30]} (36... Qc1+ $1 $11 37. Kg2 Qf4) 37. Qc4 $14 {[%emt 0:00:41]} Qf6 {[%emt 0:00:50]} 38. e3 {[%emt 0:00:21]} ({White should play} 38. f3 $14) 38... Kh6 $11 {[%emt 0:00:10]} 39. Kg2 {[%emt 0:07:42]} Kh5 {[%emt 0:00:10]} 40. Qe4 {[%emt 0:00:58]} Kh6 {[%emt 0:00:12]} 41. Kg3 {[%emt 0:00:05]} a5 $1 {[%emt 0:00:04]} 42. Qd5 {[%emt 0:00:28]} Qg6+ $1 {[%emt 0:00:13]} 43. Kh3 {[%emt 0:00:24]} Qg1 {[%emt 0:00:01]} 44. Qe6+ {[%emt 0:01:42]} g6 {[%emt 0:00:16]} 45. Qf6 {[%emt 0:00:23][%cal Rf6h8]} Qh1+ $2 {[%emt 0:00:09]} (45... Kh7 $1 $11) 46. Kg3 $18 {[%emt 0:00:01][%cal Rf6h8]} Qg1+ {[%emt 0:00:01]} 47. Kf3 {[%emt 0:00:10][%cal Rf6h8]} Qd1+ {[%emt 0:00:04]} 48. Kg2 $2 {[%emt 0:00:04]} (48. Kf4 $18 {[%cal Rf6h8]} Kh7 49. Qxb6) 48... Kh7 $11 {[%emt 0:00:22] Inhibits Qh8+.} 49. Qf7+ {[%emt 0:00:10]} Kh6 {[%emt 0:00:02]} 50. Qf6 {[%emt 0:01:43][%cal Rf6h8]} (50. Qf4+ $6 Kh7 $14) 50... Kh7 {[%emt 0:00:08] Prevents Qh8+.} 51. Qe6 {[%emt 0:00:08]} b5 {[%emt 0:00:10]} 52. e4 {[%emt 0:00:02]} a4 {[%emt 0:00:22]} 53. bxa4 {[%emt 0:00:01]} bxa4 {[%emt 0:00:01]} 54. e5 {[%emt 0:00:01]} Qd4 {[%emt 0:00:28]} 55. Qe7+ {[%emt 0:01:12]} Kg8 {[%emt 0:00:01]} 56. Qe6+ {[%emt 0:00:10]} Kh7 {[%emt 0:00:06]} 57. Qf7+ {[%emt 0:00:03]} Kh6 {[%emt 0:00:05]} 58. Qf8+ {[%emt 0:02:50]} Kh7 $1 {[%emt 0:00:01]} (58... Kh5 59. Qh8+ Kg4 60. Qf6 Qd2 61. e6 Kh5 62. e7 Qd5+ 63. f3 Qd2+ 64. Kh3) 59. Qe7+ {[%emt 0:00:01]} Kg8 {[%emt 0:00:08]} 60. Kf3 {[%emt 0:00:41]} Qd3+ {[%emt 0:00:23]} 61. Kg4 {[%emt 0:00:11]} a3 {[%emt 0:00:05]} 62. Qe6+ {[%emt 0:00:37]} Kg7 {[%emt 0:00:07][%cal Od3f5] ( -> ...Qf5+!)} 63. Qe7+ {[%emt 0:00:24]} Kg8 {[%emt 0:00:01]} 64. Qe8+ {[%emt 0:00:56]} Kg7 {[%emt 0:00:01]} 65. e6 {[%emt 0:00:12]} Qf5+ {[%emt 0:00:18]} 66. Kg3 {[%emt 0:00:01]} Qe5+ {[%emt 0:00:39]} (66... a2 $5 67. Qd7+ $8 Kf6 68. Qf7+ Ke5 69. f4+ Ke4 70. Qb7+ Qd5 71. Qxd5+ Kxd5 $11) 67. Kg2 {[%emt 0:00:49]} Qe4+ {[%emt 0:00:05]} ({Don't take} 67... a2 68. Qd7+ Kh6 69. Qd2+ g5 70. Qxa2 gxh4 71. Qc4 $14) 68. Kg3 {[%emt 0:00:00]} Qe5+ {[%emt 0:00:01]} (68... a2 69. Qd7+ Kh6 70. Qd2+ g5 71. Qxa2 (71. hxg5+ Kh5 $11)) 69. Kf3 {[%emt 0:00:00]} Qf5+ {[%emt 0:00:09]} 70. Ke3 $2 {[%emt 0:00:00][%mdl 8192] [#]} (70. Kg3 $11) 70... a2 $1 $19 {[%emt 0:00:18]} 71. Qe7+ {[%emt 0:00:26]} Kh6 {[%emt 0:00:03] Black mates.} 72. Qa3 {[%emt 0:00:10]} Qe5+ {[%emt 0:00:05]} 73. Kf3 {[%emt 0:00:24]} a1=Q {[%emt 0:00:05]} 74. Qf8+ {[%emt 0:00:00]} Qg7 {[%emt 0:00:07]} 75. Qe8 {[%emt 0:00:00]} Qaf6+ {[%emt 0:00:10]} 76. Kg3 {[%emt 0:00:00]} Qge7 {[%emt 0:00:06] Black used his chance.  Weighted Error Value: White=0.14 (very precise) /Black=0.15 (very precise)} 0-1

[Event "FIDE WTC Prel-A 2022"]
[Site "Jerusalem"]
[Date "2022.11.20"]
[Round "2.12"]
[White "Lagarde, Maxime"]
[Black "Kevlishvili, Robby"]
[Result "0-1"]
[ECO "B51"]
[WhiteElo "2573"]
[BlackElo "2536"]
[Annotator "TA"]
[PlyCount "84"]
[EventDate "2022.11.20"]
[EventType "team-tourn"]
[EventCountry "ISR"]
[SourceTitle "playchess.com"]
[Source "ChessBase"]
[SourceQuality "1"]
[WhiteTeam "France"]
[BlackTeam "Netherlands"]
[WhiteTeamCountry "FRA"]
[BlackTeamCountry "NED"]
[TimeControl "2700+10"]

{[%evp 9,84,4,0,0,16,10,23,24,31,26,42,8,15,0,18,4,18,-10,-12,-13,-11,-14,-16,-1,-3,-30,-34,-64,-34,-63,-48,-76,-69,-166,-193,-183,-164,-217,-192,-199,-181,-291,-278,-303,-303,-435,-406,-423,-409,-616,-621,-593,-568,-877,-808,-2856,-4766,-2682,-2625,-2477,-2462,-2018,-1585,-5589,-5385,-2075,-2106,-6295,-5858,-29973,-29974,-29981,-29982,-29981,-29982,-29980,-5397]} 1. e4 {[%emt 0:00:02]} c5 {[%emt 0:00:03]} 2. Nf3 {[%emt 0:00:02]} d6 {[%emt 0:00:03]} 3. Bb5+ {[%emt 0:00:02]} Nd7 {[%emt 0:00:08]} 4. d4 {[%emt 0:00:12]} cxd4 {[%emt 0:00:06]} 5. Nxd4 {[%emt 0:00:03]} Ngf6 {[%emt 0:00:28]} 6. O-O {[%emt 0:00:02] B51: Sicilian: Moscow Variation (3 Bb5+) without 3...Bd7.} a6 {[%emt 0:00:59]} 7. Bd3 {[%emt 0:00:02]} e6 {[%emt 0:00:48]} 8. c4 {[%emt 0:00:12] White has an edge.} Be7 {[%emt 0:43:55]} 9. Nc3 {[%emt 0:00:06]} O-O {[%emt 0:00:00]} 10. Qe2 {[%emt 0:02:25]} Ne5 {[%emt 0:00:00] [#]} 11. Rd1 $146 {[%emt 0:02:10]} ({Predecessor:} 11. Bc2 Qb6 12. Rd1 Bd7 13. b3 Rac8 14. Be3 Qc7 15. f4 Neg4 16. Rd3 {0-1 (53) Rant,I (1963)-Ocytko,A (1945) Leba 2004}) 11... Qc7 {[%emt 0:00:00]} 12. Nf3 {[%emt 0:04:01]} Bd7 {[%emt 0:00:00]} 13. Be3 {[%emt 0:03:24]} Nxd3 {[%emt 0:00:00]} 14. Qxd3 {[%emt 0:03:53]} b5 {[%emt 0:00:00]} 15. cxb5 {[%emt 0:04:36]} axb5 {[%emt 0:00:00]} 16. a3 {[%emt 0:03:11]} Qb7 {[%emt 0:00:00]} 17. Bg5 {[%emt 0:04:43]} Rfd8 {[%emt 0:00:00]} 18. b4 {[%emt 0:02:23]} h6 {[%emt 0:00:00]} 19. Bh4 {[%emt 0:01:18]} Rac8 {[%emt 0:00:00]} 20. Nd2 {[%emt 0:00:37]} Bc6 {[%emt 0:00:00][%cal Of6e4] White is now going downhill.} 21. Nb3 {[%emt 0:07:03]} ({White should try} 21. Rdc1 $15) 21... g5 $19 {[%emt 0:00:00]} ({Inferior is} 21... Nxe4 22. Bxe7 (22. Na5 $2 Qb6 $17) 22... Nxc3 23. Bxd8 Nxd1 24. Bh4 $15) 22. Na5 {[%emt 0:00:01] [#]} Qa8 {[%emt 0:00:00]} 23. Bg3 {[%emt 0:00:04]} (23. Nxc6 {was necessary.} Qxc6 24. Nxb5 gxh4 25. Na7 Qxe4 26. Nxc8 Rxc8 27. Qxe4 Nxe4 28. Rac1) 23... Bxe4 {[%emt 0:00:00]} 24. Nxe4 {[%emt 0:00:02]} Nxe4 {[%emt 0:00:00]} 25. Re1 {[%emt 0:01:45]} (25. f3 $142 Qa7+ 26. Kf1 Nxg3+ 27. hxg3) 25... Bf6 {[%emt 0:00:00]} 26. Rad1 {[%emt 0:00:02]} d5 {[%emt 0:00:00]} 27. f3 {[%emt 0:01:14]} (27. h3 {was worth a try.}) 27... Nxg3 {[%emt 0:00:00]} 28. hxg3 {[%emt 0:00:02]} Qb8 {[%emt 0:00:00]} 29. g4 {[%emt 0:01:53]} (29. Qe2 $142) 29... Rc3 {[%emt 0:00:00]} 30. Qe2 {[%emt 0:00:09]} Rdc8 {[%emt 0:03:40] [#] White must now prevent ...Rc2.} 31. Qf2 {[%emt 0:00:40]} Rxa3 {[%emt 0:00:00]} 32. Rc1 {[%emt 0:00:05]} Rxc1 {[%emt 0:00:00]} 33. Rxc1 {[%emt 0:00:01]} Qf4 {[%emt 0:00:00][%csl LRb4,LRc1]} 34. Rd1 {[%emt 0:00:01]} Ra1 {[%emt 0:00:00]} 35. Rxa1 {[%emt 0:00:33]} Bd4 {[%emt 0:00:00]} 36. Nc6 {[%emt 0:00:04]} Bxf2+ {[%emt 0:00:00]} 37. Kxf2 {[%emt 0:00:01][%mdl 4096] Endgame KQ-KRN} Qc4 {[%emt 0:00:00] ( -> ...Qc2+)} 38. Ra6 {[%emt 0:00:24]} d4 {[%emt 0:00:00] And now ...Qc3 would win.} 39. Ne5 {[%emt 0:00:24]} Qc2+ {[%emt 0:00:00] Black mates.} 40. Kg3 {[%emt 0:00:03]} Qc7 {[%emt 0:00:00]} 41. f4 {[%emt 0:00:04]} gxf4+ {[%emt 0:00:00]} 42. Kxf4 {[%emt 0:00:02]} f6 {[%emt 0:00:00] Weighted Error Value: White=1.14/Black=0.06 (flawless)} (42... Qc1+ $142 43. Kg3 Qe1+ 44. Kh3 Qxe5 45. g3 d3 46. g5 hxg5 47. Rc6 d2 48. Rc8+ Kg7 49. Rd8 Qe2 50. g4 d1=Q 51. Rxd1 Qxd1 52. Kg3 Qe2 53. Kh3 f5 54. gxf5 Qf2 55. fxe6 Kf6 56. e7 Kf5 57. e8=Q g4#) 0-1